fUSD/lending_fUSD_20250417
["ID","MTS","AMOUNT","RATE_DAILY","PERIOD"]
[358219985,1744854668293,-500.0,0.00053972,120]
[358219986,1744854668304,-730.39,0.00053972,118]
[358219987,1744854668313,-500.0,0.00053972,120]
[358219988,1744854668322,-533.97924131,0.00053972,120]
[358219989,1744854668331,-958.07,0.00053972,120]
[358219990,1744854668342,-500.0,0.00053972,120]
[358219991,1744854668351,-1000.0,0.00053972,120]
[358219992,1744854668361,-500.0,0.00053972,120]
[358219993,1744854668370,-1222.41,0.00053972,120]
[358219994,1744854668380,-500.0,0.00053972,120]
[358219995,1744854668393,-592.51,0.00053972,120]
[358219996,1744854668402,-500.0,0.00053972,120]
[358219997,1744854668412,-500.0,0.00053972,120]
[358219998,1744854668422,-500.0,0.00053972,120]
[358219999,1744854668431,-292.7331578,0.00053972,120]
[358220000,1744854668440,-500.0,0.00053972,120]
[358220001,1744854668449,-500.0,0.00053972,120]
[358220002,1744854668459,-500.0,0.00053972,120]
[358220003,1744854668468,-500.0,0.00053972,120]
[358220004,1744854668478,-500.0,0.00053972,120]
[358220005,1744854668488,-500.0,0.00053972,120]
[358220006,1744854668498,-500.0,0.00053972,120]
[358220007,1744854668507,-501.46,0.00053972,120]
[358220008,1744854668516,-500.0,0.00053972,120]
[358220009,1744854668526,-208.71238002,0.00053972,120]
[358220010,1744854668535,-651.32,0.00053972,120]
[358220011,1744854668544,-500.0,0.00053972,120]
[358220012,1744854668554,-1969.24,0.00053972,120]
[358220013,1744854668563,-547.24,0.00053972,120]
[358220014,1744854668572,-500.0,0.00053972,120]
[358220015,1744854668582,-1305.81,0.00053972,35]
[358220016,1744854668591,-500.0,0.00053972,120]
[358220017,1744854668601,-500.0,0.00053972,120]
[358220018,1744854668611,-500.0,0.00053972,120]
[358220019,1744854668620,-1067.01,0.00053972,120]
[358220020,1744854668630,-824.88,0.00053972,120]
[358220021,1744854668640,-1172.02,0.00053972,120]
[358220022,1744854668649,-518.31946543,0.00053972,120]
[358220023,1744854668659,-500.0,0.00053972,120]
[358220024,1744854668669,-1117.56,0.00053972,120]
[358220025,1744854668678,-478.98634647,0.00053972,120]
[358220026,1744854668688,-500.0,0.00053972,120]
[358220027,1744854668698,-500.0,0.00053972,120]
[358220028,1744854668707,-500.0,0.00053972,120]
[358220029,1744854668717,-500.0,0.00053972,120]
[358220030,1744854668727,-1357.6,0.00053972,120]
[358220031,1744854668740,-500.0,0.00053972,120]
[358220032,1744854668749,-500.0,0.00053972,120]
[358220033,1744854668759,-500.0,0.00053972,120]
[358220034,1744854668768,-238.94270671,0.00053972,120]
[358220035,1744854668777,-1824.95,0.00053972,120]
[358220036,1744854668787,-839.32,0.00053972,120]
[358220037,1744854668796,-512.99438684,0.00053972,120]
[358220038,1744854668805,-1069.69,0.00053972,120]
[358220039,1744854668815,-500.0,0.00053972,120]
[358220040,1744854668823,-844.0,0.00053981,30]
[358220041,1744854668832,-1054.45527967,0.00054,2]
[358220042,1744854668841,-5536.35397038,0.00054,5]
[358220043,1744854668851,-1163.72147341,0.00054,120]
[358220044,1744854668862,-238.09858763,0.00054,120]
[358220045,1744854668872,-1000.0,0.00054,120]
[358220046,1744854668883,-178.10217209,0.00054021,30]
[358220047,1744854668892,-687.6159,0.00054059,2]
[358220048,1744854668902,-178.10217209,0.00054076,30]
[358220049,1744854668911,-178.10217209,0.00054132,30]
[358220050,1744854668921,-178.10217209,0.00054187,30]
[358220051,1744854668931,-850.0,0.00054236,10]
[358220052,1744854668941,-178.10217209,0.00054242,30]
[358220053,1744854668951,-500.0,0.00054246,120]
[358220054,1744854668961,-500.0,0.00054246,120]
[358220055,1744854668972,-633.04,0.00054246,120]
[358220056,1744854668981,-741.12,0.00054246,120]
[358220057,1744854668991,-151.0,0.00054246,120]
[358220058,1744854669000,-500.0,0.00054246,120]
[358220059,1744854669009,-1165.78,0.00054246,120]
[358220060,1744854669019,-609.86,0.00054246,120]
[358220061,1744854669028,-603.6,0.00054246,30]
[358220062,1744854669037,-500.0,0.00054246,120]
[358220063,1744854669047,-716.81,0.00054246,120]
[358220064,1744854669056,-1153.37,0.00054246,120]
[358220065,1744854669068,-1067.9,0.00054246,8]
[358220066,1744854669083,-834.1,0.00054246,120]
[358220067,1744854669093,-709.13,0.00054246,120]
[358220068,1744854669103,-500.0,0.00054246,120]
[358220069,1744854669113,-507.6,0.00054246,120]
[358220070,1744854669123,-631.81,0.00054246,120]
[358220071,1744854669134,-500.0,0.00054246,120]
[358220072,1744854669143,-500.0,0.00054246,120]
[358220073,1744854669153,-607.6050091,0.00054246,120]
[358220074,1744854669162,-599.58,0.00054246,120]
[358220075,1744854669171,-500.0,0.00054246,120]
[358220076,1744854669180,-737.91,0.00054246,120]
[358220077,1744854669190,-587.84,0.00054246,120]
[358220078,1744854669200,-577.283513,0.00054246,120]
[358220079,1744854669209,-706.998014,0.00054246,120]
[358220080,1744854669218,-154.386344,0.00054246,120]
[358220081,1744854669227,-2814.8778718,0.00054246,4]
[358220082,1744854669237,-500.0,0.00054246,120]
[358220083,1744854669246,-153.090261,0.00054246,120]
[358220084,1744854669256,-365.925591,0.00054246,120]
[358220085,1744854669264,-1258.89,0.00054246,120]
[358220086,1744854669273,-214.11664065,0.00054246,120]
[358220087,1744854669281,-799.91,0.00054246,120]
[358220088,1744854669292,-500.0,0.00054246,120]
[358220089,1744854669301,-500.0,0.00054246,120]
[358220090,1744854669310,-500.0,0.00054246,120]
[358220091,1744854669319,-3015.912726,0.00054246,120]
[358220092,1744854669329,-500.0,0.00054246,120]
[358220093,1744854669338,-500.0,0.00054246,120]
[358220094,1744854669347,-1009.73,0.00054246,120]
[358220095,1744854669356,-500.0,0.00054246,120]
[358220096,1744854669365,-500.0,0.00054246,120]
[358220097,1744854669374,-500.0,0.00054246,120]
[358220098,1744854669384,-500.0,0.00054246,120]
[358220099,1744854669394,-500.0,0.00054246,120]
[358220100,1744854669402,-526.55,0.00054246,120]
[358220101,1744854669411,-500.0,0.00054246,120]
[358220102,1744854669421,-500.0,0.00054246,120]
[358220103,1744854669430,-500.0,0.00054246,120]
[358220104,1744854669440,-575.98093687,0.00054246,120]
[358220105,1744854669449,-885.35,0.00054246,120]
[358220106,1744854669459,-500.0,0.00054246,120]
[358220107,1744854669468,-500.0,0.00054246,120]
[358220108,1744854669477,-500.0,0.00054246,120]
[358220109,1744854669487,-722.16,0.00054246,120]
[358220110,1744854669497,-500.0,0.00054246,120]
[358220111,1744854669506,-500.0,0.00054246,120]
[358220112,1744854669515,-730.39,0.00054246,118]
[358220113,1744854669526,-500.0,0.00054246,120]
[358220114,1744854669536,-958.07,0.00054246,120]
[358220115,1744854669545,-500.0,0.00054246,120]
[358220116,1744854669555,-1000.0,0.00054246,120]
[358220117,1744854669566,-500.0,0.00054246,120]
[358220118,1744854669698,-1222.41,0.00054246,120]
[358220119,1744854669707,-500.0,0.00054246,120]
[358220120,1744854669716,-592.51,0.00054246,120]
[358220121,1744854669726,-500.0,0.00054246,120]
[358220122,1744854669735,-500.0,0.00054246,120]
[358220123,1744854669744,-500.0,0.00054246,120]
[358220124,1744854669754,-500.0,0.00054246,120]
[358220125,1744854669764,-500.0,0.00054246,120]
[358220126,1744854669774,-500.0,0.00054246,120]
[358220127,1744854669783,-500.0,0.00054246,120]
[358220128,1744854669792,-500.0,0.00054246,120]
[358220129,1744854669801,-500.0,0.00054246,120]
[358220130,1744854669811,-500.0,0.00054246,120]
[358220131,1744854669820,-501.46,0.00054246,120]
[358220132,1744854669830,-500.0,0.00054246,120]
[358220133,1744854669839,-651.32,0.00054246,120]
[358220134,1744854669849,-500.0,0.00054246,120]
[358220135,1744854669861,-1969.24,0.00054246,120]
[358220136,1744854669870,-547.24,0.00054246,120]
[358220137,1744854669880,-500.0,0.00054246,120]
[358220138,1744854669890,-1305.81,0.00054246,35]
[358220139,1744854669900,-500.0,0.00054246,120]
[358220140,1744854669909,-500.0,0.00054246,120]
[358220141,1744854669919,-500.0,0.00054246,120]
[358220142,1744854669929,-1067.01,0.00054246,120]
[358220143,1744854669938,-824.88,0.00054246,120]
[358220144,1744854669947,-155.383724,0.00054246,120]
[358220145,1744854669957,-1172.02,0.00054246,120]
[358220146,1744854669966,-500.0,0.00054246,120]
[358220147,1744854669976,-1117.56,0.00054246,120]
[358220148,1744854669986,-156.8548227,0.00054246,120]
[358220149,1744854669996,-500.0,0.00054246,120]
[358220150,1744854670006,-495.25084511,0.00054246,120]
[358220151,1744854670016,-500.0,0.00054246,120]
[358220152,1744854670025,-1357.6,0.00054246,120]
[358220153,1744854670034,-510.13342353,0.00054246,120]
[358220154,1744854670044,-500.0,0.00054246,120]
[358220155,1744854670054,-500.0,0.00054246,120]
[358220156,1744854670063,-1824.95,0.00054246,120]
[358220157,1744854670073,-839.32,0.00054246,120]
[358220158,1744854670082,-1069.69,0.00054246,120]
[358220159,1744854670091,-500.0,0.00054246,120]
[358220160,1744854670100,-178.10217209,0.00054297,30]
[358220161,1744854670109,-1161.73,0.00054309,2]
[358220162,1744854670121,-178.10217209,0.00054353,30]
[358220163,1744854670130,-178.10217209,0.00054408,30]
[358220164,1744854670139,-168.7,0.0005442,120]
[358220165,1744854670149,-178.10217209,0.00054463,30]
[358220166,1744854670159,-1000.0,0.000545,2]
[358220167,1744854670169,-150.31,0.000545,120]
[358220168,1744854670180,-150.31,0.000545,120]
[358220169,1744854670189,-2000.0,0.000545,2]
[358220170,1744854670199,-160.13,0.000545,120]
[358220171,1744854670208,-160.13,0.000545,120]
[358220172,1744854670218,-178.10217209,0.00054519,30]
[358220173,1744854670227,-500.0,0.0005452,120]
[358220174,1744854670238,-500.0,0.0005452,120]
[358220175,1744854670248,-633.04,0.0005452,120]
[358220176,1744854670257,-741.12,0.0005452,120]
[358220177,1744854670266,-500.0,0.0005452,120]
[358220178,1744854670275,-1165.78,0.0005452,120]
[358220179,1744854670284,-609.86,0.0005452,120]
[358220180,1744854670294,-603.6,0.0005452,30]
[358220181,1744854670303,-500.0,0.0005452,120]
[358220182,1744854670312,-716.81,0.0005452,120]
[358220183,1744854670322,-1153.37,0.0005452,120]
[358220184,1744854670331,-1067.9,0.0005452,8]
[358220185,1744854670340,-834.1,0.0005452,120]
[358220186,1744854670350,-709.13,0.0005452,120]
[358220187,1744854670359,-500.0,0.0005452,120]
[358220188,1744854670369,-507.6,0.0005452,120]
[358220189,1744854670378,-631.81,0.0005452,120]
[358220190,1744854670388,-500.0,0.0005452,120]
[358220191,1744854670398,-500.0,0.0005452,120]
[358220192,1744854670407,-599.58,0.0005452,120]
[358220193,1744854670419,-500.0,0.0005452,120]
[358220194,1744854670430,-737.91,0.0005452,120]
[358220195,1744854670439,-587.84,0.0005452,120]
[358220196,1744854670448,-706.998014,0.0005452,120]
[358220197,1744854670458,-154.386344,0.0005452,120]
[358220198,1744854670468,-500.0,0.0005452,120]
[358220199,1744854670477,-153.090261,0.0005452,120]
[358220200,1744854670488,-365.925591,0.0005452,120]
[358220201,1744854670497,-1258.89,0.0005452,120]
[358220202,1744854670508,-799.91,0.0005452,120]
[358220203,1744854670519,-500.0,0.0005452,120]
[358220204,1744854670530,-500.0,0.0005452,120]
[358220205,1744854670540,-500.0,0.0005452,120]
[358220206,1744854670550,-3015.912726,0.0005452,120]
[358220207,1744854670560,-500.0,0.0005452,120]
[358220208,1744854670569,-500.0,0.0005452,120]
[358220209,1744854670578,-1009.73,0.0005452,120]
[358220210,1744854670588,-500.0,0.0005452,120]
[358220211,1744854670597,-500.0,0.0005452,120]
[358220212,1744854670606,-500.0,0.0005452,120]
[358220213,1744854670616,-500.0,0.0005452,120]
[358220214,1744854670625,-500.0,0.0005452,120]
[358220215,1744854670635,-526.55,0.0005452,120]
[358220216,1744854670644,-500.0,0.0005452,120]
[358220217,1744854670654,-500.0,0.0005452,120]
[358220218,1744854670663,-500.0,0.0005452,120]
[358220219,1744854670673,-885.35,0.0005452,120]
[358220220,1744854670682,-500.0,0.0005452,120]
[358220221,1744854670692,-500.0,0.0005452,120]
[358220222,1744854670701,-359.92429537,0.0005452,120]
[358220223,1744854670710,-722.16,0.0005452,120]
[358220224,1744854670719,-500.0,0.0005452,120]
[358220225,1744854670729,-500.0,0.0005452,120]
[358220226,1744854670738,-730.39,0.0005452,118]
[358220227,1744854670747,-500.0,0.0005452,120]
[358220228,1744854670756,-958.07,0.0005452,120]
[358220229,1744854670766,-500.0,0.0005452,120]
[358220230,1744854670776,-1000.0,0.0005452,120]
[358220231,1744854670785,-500.0,0.0005452,120]
[358220232,1744854670795,-1222.41,0.0005452,120]
[358220233,1744854670804,-500.0,0.0005452,120]
[358220234,1744854670813,-592.51,0.0005452,120]
[358220235,1744854670823,-500.0,0.0005452,120]
[358220236,1744854670832,-500.0,0.0005452,120]
[358220237,1744854670841,-500.0,0.0005452,120]
[358220238,1744854670850,-500.0,0.0005452,120]
[358220239,1744854670861,-500.0,0.0005452,120]
[358220240,1744854670870,-500.0,0.0005452,120]
[358220241,1744854670879,-500.0,0.0005452,120]
[358220242,1744854670888,-500.0,0.0005452,120]
[358220243,1744854670898,-500.0,0.0005452,120]
[358220244,1744854670908,-500.0,0.0005452,120]
[358220245,1744854670917,-501.46,0.0005452,120]
[358220246,1744854670925,-500.0,0.0005452,120]
[358220247,1744854670935,-651.32,0.0005452,120]
[358220248,1744854670944,-500.0,0.0005452,120]
[358220249,1744854670953,-1969.24,0.0005452,120]
[358220250,1744854670962,-547.24,0.0005452,120]
[358220251,1744854670971,-500.0,0.0005452,120]
[358220252,1744854670981,-1305.81,0.0005452,35]
[358220253,1744854670991,-425.588576,0.0005452,120]
[358220254,1744854671000,-500.0,0.0005452,120]
[358220255,1744854671010,-500.0,0.0005452,120]
[358220256,1744854671019,-1067.01,0.0005452,120]
[358220257,1744854671029,-824.88,0.0005452,120]
[358220258,1744854671038,-1172.02,0.0005452,120]
[358220259,1744854671047,-500.0,0.0005452,120]
[358220260,1744854671056,-1117.56,0.0005452,120]
[358220261,1744854671066,-500.0,0.0005452,120]
[358220262,1744854671079,-500.0,0.0005452,120]
[358220263,1744854671087,-1357.6,0.0005452,120]
[358220264,1744854671096,-500.0,0.0005452,120]
[358220265,1744854671106,-500.0,0.0005452,120]
[358220266,1744854671117,-1824.95,0.0005452,120]
[358220267,1744854671126,-839.32,0.0005452,120]
[358220268,1744854671136,-1069.69,0.0005452,120]
[358220269,1744854671145,-500.0,0.0005452,120]
[358220270,1744854671157,-844.0,0.00054537,30]
[358220271,1744854671167,-4870.75239885,0.00054538,15]
[358220272,1744854671176,-4851.08363484,0.00054539,15]
[358220273,1744854671185,-178.10217209,0.00054574,30]
[358220274,1744854671195,-151.0,0.000546,120]
[358220275,1744854671203,-178.10217209,0.00054629,30]
[358220276,1744854671212,-541.62615349,0.00054675,32]
[358220277,1744854671222,-178.10217209,0.00054684,30]
[358220278,1744854671231,-485.33901919,0.00054693,120]
[358220279,1744854671240,-1785.7149,0.00054694,2]
[358220280,1744854671249,-1000.0,0.00054694,2]
[358220281,1744854671259,-252.30091703,0.00054694,2]
[358220282,1744854671268,-779.23815873,0.00054694,2]
[358220283,1744854671277,-206.43949241,0.00054694,11]
[358220284,1744854671286,-21212.25240355,0.00054694,2]
[358220285,1744854671295,-194.0,0.000547,120]
[358220286,1744854671305,-248.692116,0.000547,120]
[358220287,1744854671314,-192.0,0.000547,120]
[358220288,1744854671323,-192.0,0.000547,120]
[358220289,1744854671332,-159.0,0.000547,70]
[358220290,1744854671342,-168.62,0.00054734,15]
[358220291,1744854671351,-168.62,0.00054734,15]
[358220292,1744854671361,-168.62,0.00054734,15]
[358220293,1744854671370,-168.62,0.00054734,15]
[358220294,1744854671380,-168.62,0.00054734,15]
[358220295,1744854671390,-168.62,0.00054734,15]
[358220296,1744854671399,-114110.5742999,0.00054735,2]
[358220297,1744854671408,-178.10217209,0.0005474,30]
[358220298,1744854671417,-1796.78,0.00054751,15]
[358220299,1744854671426,-151.0,0.00054752,120]
[358220300,1744854671436,-187.97813707,0.00054753,120]
[358220301,1744854671445,-1796.78,0.00054754,15]
[358220302,1744854671454,-174.665478,0.00054755,120]
[358220303,1744854671463,-1796.78,0.00054761,15]
[358220304,1744854671472,-153.000379,0.00054762,120]
[358220305,1744854671481,-320.0,0.00054762,120]
[358220306,1744854671491,-151.0,0.00054762,120]
[358220307,1744854671500,-151.0,0.00054762,120]
[358220308,1744854671509,-80731.5946492,0.00054762,2]
[358220309,1744854671519,-2154.6152269,0.00054762,2]
[358220310,1744854671528,-568.91750985,0.00054762,2]
[358220311,1744854671537,-17568.000759,0.00054762,2]
[358220312,1744854671547,-150.0,0.00054763,120]
[358220313,1744854671556,-151.0,0.00054764,120]
[358220314,1744854671566,-151.0,0.00054765,120]
[358220315,1744854671575,-196.0,0.00054767,120]
[358220316,1744854671585,-500.0,0.00054772,120]
[358220317,1744854671594,-500.0,0.00054773,30]
[358220318,1744854671603,-501.23409643,0.00054773,120]
[358220319,1744854671612,-500.0,0.00054773,120]
[358220320,1744854671621,-500.0,0.00054773,120]
[358220321,1744854671630,-500.0,0.00054773,120]
[358220322,1744854671639,-504.61034092,0.00054773,120]
[358220323,1744854671647,-500.0,0.00054773,120]
[358220324,1744854671655,-504.59744902,0.00054773,120]
[358220325,1744854671664,-500.0,0.00054773,120]
[358220326,1744854671673,-500.0,0.00054773,120]
[358220327,1744854671682,-516.63159246,0.00054773,120]
[358220328,1744854671691,-503.35859943,0.00054773,120]
[358220329,1744854671699,-501.85284779,0.00054773,120]
[358220330,1744854671708,-500.0,0.00054773,120]
[358220331,1744854671717,-523.10392878,0.00054773,120]
[358220332,1744854671726,-500.0,0.00054773,120]
[358220333,1744854671734,-505.17757821,0.00054773,120]
[358220334,1744854671744,-524.92295638,0.00054773,120]
[358220335,1744854671753,-500.0,0.00054773,120]
[358220336,1744854671763,-500.0,0.00054773,120]
[358220337,1744854671772,-500.0,0.00054773,120]
[358220338,1744854671781,-500.0,0.00054773,30]
[358220339,1744854671791,-522.44374752,0.00054773,120]
[358220340,1744854671802,-892.32,0.00054773,120]
[358220341,1744854671811,-517.87289187,0.00054773,120]
[358220342,1744854671821,-516.86803388,0.00054773,120]
[358220343,1744854671830,-516.85804996,0.00054773,120]
[358220344,1744854671839,-501.94154156,0.00054773,120]
[358220345,1744854671848,-257.91789148,0.00054773,30]
[358220346,1744854671858,-516.74969292,0.00054773,120]
[358220347,1744854671868,-504.4128438,0.00054773,120]
[358220348,1744854671877,-500.0,0.00054773,120]
[358220349,1744854671887,-500.0,0.00054773,120]
[358220350,1744854671897,-500.0,0.00054773,120]
[358220351,1744854671907,-500.0,0.00054773,120]
[358220352,1744854671916,-500.0,0.00054773,120]
[358220353,1744854671926,-514.60547945,0.00054773,120]
[358220354,1744854671936,-500.0,0.00054773,120]
[358220355,1744854671946,-500.0,0.00054773,120]
[358220356,1744854671955,-500.0,0.00054773,120]
[358220357,1744854671965,-524.236553,0.00054773,120]
[358220358,1744854672087,-500.0,0.00054773,120]
[358220359,1744854672099,-500.0,0.00054773,120]
[358220360,1744854672110,-500.7986882,0.00054773,120]
[358220361,1744854672120,-500.0,0.00054773,120]
[358220362,1744854672131,-331.36536807,0.00054773,120]
[358220363,1744854672141,-515.11754068,0.00054773,120]
[358220364,1744854672151,-502.3551385,0.00054773,120]
[358220365,1744854672161,-500.0,0.00054773,120]
[358220366,1744854672171,-525.69847987,0.00054773,120]
[358220367,1744854672181,-500.0,0.00054773,120]
[358220368,1744854672191,-508.61130515,0.00054773,120]
[358220369,1744854672200,-500.0,0.00054773,120]
[358220370,1744854672210,-517.064941,0.00054773,120]
[358220371,1744854672220,-500.0,0.00054773,120]
[358220372,1744854672231,-513.90780778,0.00054773,120]
[358220373,1744854672241,-500.0,0.00054773,120]
[358220374,1744854672252,-521.72883395,0.00054773,120]
[358220375,1744854672261,-534.76340423,0.00054773,120]
[358220376,1744854672272,-529.44670612,0.00054773,120]
[358220377,1744854672282,-500.0,0.00054773,120]
[358220378,1744854672293,-517.64848462,0.00054773,120]
[358220379,1744854672303,-500.0,0.00054773,120]
[358220380,1744854672313,-503.49013916,0.00054773,120]
[358220381,1744854672322,-511.62985768,0.00054773,120]
[358220382,1744854672331,-500.0,0.00054773,120]
[358220383,1744854672341,-525.02571466,0.00054773,120]
[358220384,1744854672351,-512.88998378,0.00054773,120]
[358220385,1744854672361,-500.0,0.00054773,120]
[358220386,1744854672372,-513.94928837,0.00054773,120]
[358220387,1744854672382,-500.0,0.00054773,120]
[358220388,1744854672392,-193.26947107,0.00054773,120]
[358220389,1744854672402,-500.0,0.00054773,120]
[358220390,1744854672411,-744.6,0.00054773,120]
[358220391,1744854672421,-503.6841706,0.00054773,120]
[358220392,1744854672431,-522.23667751,0.00054773,120]
[358220393,1744854672440,-508.15907126,0.00054773,90]
[358220394,1744854672450,-515.03539873,0.00054773,120]
[358220395,1744854672460,-513.83274294,0.00054773,120]
[358220396,1744854672469,-531.59139071,0.00054773,120]
[358220397,1744854672479,-576.80469937,0.00054773,120]
[358220398,1744854672488,-500.0,0.00054773,120]
[358220399,1744854672498,-533.54159588,0.00054773,120]
[358220400,1744854672507,-500.0,0.00054773,120]
[358220401,1744854672517,-500.0,0.00054773,120]
[358220402,1744854672527,-538.85040089,0.00054773,120]
[358220403,1744854672536,-505.98284542,0.00054773,120]
[358220404,1744854672546,-500.0,0.00054773,120]
[358220405,1744854672555,-508.32753731,0.00054773,120]
[358220406,1744854672565,-632.34214082,0.00054773,120]
[358220407,1744854672575,-506.37434829,0.00054773,120]
[358220408,1744854672584,-516.37828351,0.00054773,120]
[358220409,1744854672595,-531.12077608,0.00054773,120]
[358220410,1744854672604,-502.52045192,0.00054773,120]
[358220411,1744854672614,-511.45119778,0.00054773,120]
[358220412,1744854672623,-511.81047013,0.00054773,120]
[358220413,1744854672633,-500.0,0.00054773,120]
[358220414,1744854672643,-544.40321258,0.00054773,120]
[358220415,1744854672652,-508.52142808,0.00054773,120]
[358220416,1744854672663,-503.22286333,0.00054773,120]
[358220417,1744854672672,-500.0,0.00054773,120]
[358220418,1744854672682,-603.4873135,0.00054773,120]
[358220419,1744854672691,-507.84164071,0.00054773,120]
[358220420,1744854672700,-516.02886809,0.00054773,120]
[358220421,1744854672710,-512.37478362,0.00054773,120]
[358220422,1744854672719,-528.82582845,0.00054773,120]
[358220423,1744854672728,-503.96200663,0.00054773,120]
[358220424,1744854672738,-517.0980107,0.00054773,120]
[358220425,1744854672748,-1240.73,0.00054773,120]
[358220426,1744854672758,-506.88808224,0.00054773,120]
[358220427,1744854672768,-513.03964548,0.00054773,120]
[358220428,1744854672778,-505.27804211,0.00054773,120]
[358220429,1744854672787,-500.0,0.00054773,120]
[358220430,1744854672797,-504.21459181,0.00054773,120]
[358220431,1744854672806,-500.0,0.00054773,120]
[358220432,1744854672815,-507.48157021,0.00054773,120]
[358220433,1744854672825,-500.0,0.00054773,120]
[358220434,1744854672834,-529.40659954,0.00054773,120]
[358220435,1744854672844,-512.57218827,0.00054773,120]
[358220436,1744854672854,-510.32509801,0.00054773,120]
[358220437,1744854672864,-500.0,0.00054773,120]
[358220438,1744854672874,-510.76284728,0.00054773,120]
[358220439,1744854672883,-1855.34,0.00054773,120]
[358220440,1744854672893,-502.87991082,0.00054773,120]
[358220441,1744854672902,-500.0,0.00054773,120]
[358220442,1744854672912,-828.54,0.00054773,120]
[358220443,1744854672921,-220.04435825,0.00054773,120]
[358220444,1744854672931,-512.98298362,0.00054773,120]
[358220445,1744854672940,-511.09961802,0.00054773,120]
[358220446,1744854672950,-512.15628657,0.00054773,120]
[358220447,1744854672959,-615.80909141,0.00054773,120]
[358220448,1744854672969,-500.0,0.00054773,120]
[358220449,1744854672978,-514.47202656,0.00054773,120]
[358220450,1744854672987,-500.0,0.00054773,120]
[358220451,1744854672996,-506.11991285,0.00054773,120]
[358220452,1744854673006,-506.13148359,0.00054773,120]
[358220453,1744854673015,-500.0,0.00054773,120]
[358220454,1744854673024,-513.90394535,0.00054773,120]
[358220455,1744854673034,-501.41419691,0.00054773,120]
[358220456,1744854673041,-524.51735564,0.00054773,120]
[358220457,1744854673049,-572.3772043,0.00054773,120]
[358220458,1744854673057,-540.45006883,0.00054773,120]
[358220459,1744854673066,-500.0,0.00054773,120]
[358220460,1744854673079,-500.0,0.00054773,120]
[358220461,1744854673089,-500.0,0.00054773,120]
[358220462,1744854673098,-500.0,0.00054773,120]
[358220463,1744854673107,-500.0,0.00054773,120]
[358220464,1744854673118,-500.0,0.00054773,120]
[358220465,1744854673127,-506.91191956,0.00054773,120]
[358220466,1744854673138,-525.70215696,0.00054773,120]
[358220467,1744854673148,-504.76484826,0.00054773,120]
[358220468,1744854673159,-500.0,0.00054773,120]
[358220469,1744854673168,-500.0,0.00054773,120]
[358220470,1744854673178,-517.98741991,0.00054773,20]
[358220471,1744854673187,-506.79228322,0.00054773,120]
[358220472,1744854673196,-500.0,0.00054773,120]
[358220473,1744854673206,-507.96226424,0.00054773,120]
[358220474,1744854673215,-515.93454323,0.00054773,120]
[358220475,1744854673224,-509.89847343,0.00054773,120]
[358220476,1744854673233,-500.0,0.00054773,120]
[358220477,1744854673242,-500.0,0.00054773,120]
[358220478,1744854673252,-856.04,0.00054773,120]
[358220479,1744854673261,-2022.25482971,0.00054773,120]
[358220480,1744854673270,-506.14,0.00054773,120]
[358220481,1744854673279,-500.0,0.00054773,120]
[358220482,1744854673289,-500.0,0.00054773,120]
[358220483,1744854673299,-500.0,0.00054773,120]
[358220484,1744854673308,-500.0,0.00054773,120]